lending/lending_fUSD_20260101
["ID","MTS","AMOUNT","RATE_DAILY","PERIOD"]
[400290153,1767282749173,-2000.0,0.0005255,74]
[400290154,1767282749237,-800.0,0.00052562,60]
[400290155,1767282749311,-1500.0,0.00052562,60]
[400290156,1767282749391,-1621.63255432,0.00052799,120]
[400290157,1767282749466,-548.36854561,0.00052799,120]
[400290158,1767282749540,-568.0663786,0.00052799,120]
[400290159,1767282749614,-151.0,0.000528,120]
[400290160,1767282749682,-270313.06277136,0.000529,120]
[400290161,1767282749753,-1000.0,0.00052999,120]
[400290162,1767282749822,-443.9264798,0.00053,120]
[400290163,1767282749894,-235.70247412,0.00053,120]
[400290164,1767282749963,-1000.0,0.00053,120]
[400290165,1767282750029,-250.0,0.00053,120]
[400290166,1767282750095,-2446.0,0.00053,120]
[400290167,1767282750161,-253.0,0.000531,78]
[400290168,1767282750226,-152.0,0.000532,120]
[400290169,1767282750297,-3000.0,0.00053384,60]
[400290170,1767282750366,-179.36164085,0.00053425,30]
[400290171,1767282750433,-645498.37500362,0.00053495,120]
[400290172,1767282750499,-44752.4798157,0.00053495,120]
[400290173,1767282750573,-231857.3260469,0.00053495,120]
[400290174,1767282750644,-365.63439472,0.000535,120]
[400290175,1767282750710,-151.0,0.000535,120]
[400290176,1767282750775,-800.0,0.00053658,60]
[400290177,1767282750839,-1500.0,0.00053658,60]
[400290178,1767282750904,-801.0,0.00053719,120]
[400290179,1767282750969,-450.48339779,0.000538,120]
[400290180,1767282751037,-152.0,0.000538,120]
[400290181,1767282751100,-1125.7247898,0.0005385,120]
[400290182,1767282751168,-1728.96972233,0.000539,120]
[400290183,1767282751239,-2148.53654717,0.000539,30]
[400290184,1767282751310,-1480209.70319535,0.0005392,120]
[400290187,1767282916556,679.91253844,0.00043108,120]
[400290188,1767282962702,500.0,0.00043108,120]
[400290189,1767282962788,304.62542525,0.00043108,120]
[400290190,1767282968961,207.61424002,0.00043108,120]
[400290191,1767282969392,800.0,0.00043108,120]
[400290192,1767282969649,264.47585683,0.00043108,120]
[400290193,1767282972810,1099.0,0.00043108,30]
[400290194,1767282973650,500.0,0.00043108,120]
[400290195,1767282974284,502.08386838,0.00043108,120]
[400290196,1767282976045,536.51,0.00043108,120]
[400290197,1767282976279,536.51,0.00043108,120]
[400290198,1767282976515,536.51,0.00043108,120]
[400290199,1767282976752,536.51,0.00043108,120]
[400290200,1767282976972,536.51,0.00043108,120]
[400290201,1767282977207,536.51,0.00043108,120]
[400290202,1767282977437,536.51,0.00043108,120]
[400290203,1767282977734,536.51,0.00043108,120]
[400290204,1767282977970,536.51,0.00043108,120]
[400290205,1767282978230,536.51,0.00043108,120]
[400290206,1767282978466,536.51,0.00043108,120]
[400290207,1767282978704,536.51,0.00043108,120]
[400290208,1767282978939,536.51,0.00043108,120]
[400290209,1767282979185,536.51,0.00043108,120]
[400290210,1767282979436,536.51,0.00043108,120]
[400290211,1767282979669,536.51,0.00043108,120]
[400290212,1767282979895,536.51,0.00043108,120]
[400290213,1767282980132,536.51,0.00043108,120]
[400290214,1767282980373,536.51,0.00043108,120]
[400290215,1767282980791,536.51,0.00043108,120]
[400290216,1767282980875,536.51,0.00043108,120]
[400290217,1767282981099,536.51,0.00043108,120]
[400290218,1767282981331,536.51,0.00043108,120]
[400290219,1767282981578,536.69517183,0.00043108,120]
[400290221,1767283032153,240.19999942,0.00043108,120]
[400290222,1767283032263,197.64011899,0.00043108,120]
[400290223,1767283050858,500.0,0.00043108,120]
[400290224,1767283051214,500.0,0.00043108,120]
[400290225,1767283051491,500.0,0.00043108,120]
[400290226,1767283051735,500.0,0.00043108,120]
[400290227,1767283052056,500.0,0.00043108,120]
[400290228,1767283052216,500.0,0.00043108,120]
[400290229,1767283052449,500.0,0.00043108,120]
[400290230,1767283052692,500.0,0.00043108,120]
[400290231,1767283052927,500.0,0.00043108,120]
[400290232,1767283053171,500.0,0.00043108,120]
[400290233,1767283053420,500.0,0.00043108,120]
[400290234,1767283053653,500.0,0.00043108,120]
[400290235,1767283053888,500.0,0.00043108,120]
[400290236,1767283054130,500.0,0.00043108,120]
[400290237,1767283054360,500.0,0.00043108,120]
[400290238,1767283054599,500.0,0.00043108,120]
[400290239,1767283054844,500.0,0.00043108,120]
[400290240,1767283055072,500.0,0.00043108,120]
[400290241,1767283055326,500.0,0.00043108,120]
[400290242,1767283055567,569.13728051,0.00043108,120]
[400290243,1767283082352,500.0,0.00043108,120]
[400290244,1767283082625,184.73211803,0.00043108,120]
[400290245,1767283088191,207.61424001,0.00043108,120]
[400290246,1767283088668,207.61424001,0.00043108,120]
[400290247,1767283093456,168.71,0.00011383,2]
[400290248,1767283095924,500.0,0.00043108,120]
[400290249,1767283096207,500.0,0.00043108,120]
[400290250,1767283096455,500.0,0.00043108,120]
[400290251,1767283096756,500.0,0.00043108,120]
[400290252,1767283096993,500.0,0.00043108,120]
[400290253,1767283097253,500.0,0.00043108,120]
[400290254,1767283097488,500.0,0.00043108,120]
[400290255,1767283097727,500.0,0.00043108,120]
[400290256,1767283097990,500.0,0.00043108,120]
[400290257,1767283098221,502.5,0.00043108,120]
[400290258,1767283102202,215.18229481,0.00043108,120]
[400290260,1767283131327,159.55799395,0.00043108,120]
[400290261,1767283183753,178.96512656,0.00043108,120]
[400290262,1767283185623,279.85337267,0.00043108,120]
[400290263,1767283200498,1000.0,0.00043108,30]
[400290264,1767283203208,154.29987261,0.00043136,120]
[400290265,1767283211815,303.4318514,0.00043136,120]
[400290267,1767283238178,838.02,0.00043136,120]
[400290268,1767283238425,838.02,0.00043136,120]
[400290269,1767283238680,838.02,0.00043136,120]
[400290270,1767283238891,838.02,0.00043136,120]
[400290271,1767283239154,838.02,0.00043136,120]
[400290272,1767283239401,838.02,0.00043136,120]
[400290273,1767283239645,838.02,0.00043136,120]
[400290274,1767283239881,838.02,0.00043136,120]
[400290275,1767283240173,838.02,0.00043136,120]
[400290276,1767283240414,838.02,0.00043136,120]
[400290277,1767283240689,838.02,0.00043136,120]
[400290278,1767283240956,838.02,0.00043136,120]
[400290279,1767283241233,838.02,0.00043136,120]
[400290280,1767283241487,838.02,0.00043136,120]
[400290281,1767283241735,838.02,0.00043136,120]
[400290282,1767283242007,838.02,0.00043136,120]
[400290283,1767283242239,838.02,0.00043136,120]
[400290284,1767283242508,838.02,0.00043136,120]
[400290285,1767283242743,838.02,0.00043136,120]
[400290286,1767283242990,838.02,0.00043136,120]
[400290287,1767283243239,838.02,0.00043136,120]
[400290288,1767283243474,838.02,0.00043136,120]
[400290289,1767283243744,838.02,0.00043136,120]
[400290290,1767283243988,838.08657348,0.00043136,120]
[400290291,1767283263435,500.0,0.00043136,120]
[400290292,1767283265237,500.0,0.00043136,120]
[400290293,1767283265484,515.87717751,0.00043136,120]
[400290294,1767283276121,500.0,0.00043136,120]
[400290295,1767283276405,500.0,0.00043136,120]
[400290296,1767283276649,500.0,0.00043136,120]
[400290297,1767283276881,500.0,0.00043136,120]
[400290298,1767283277113,500.0,0.00043136,120]
[400290299,1767283277344,487.8,0.00043136,120]
[400290300,1767283282567,500.0,0.00043136,120]
[400290301,1767283282817,500.0,0.00043136,120]
[400290302,1767283283047,159.0545264,0.00043136,120]
[400290305,1767283345994,511.33878369,0.00043136,120]
[400290307,1767283371099,529.95602731,0.00043136,120]
[400290308,1767283397552,677.17134425,0.00043136,120]
[400290309,1767283461143,158.830189,0.00043136,50]
[400290310,1767283461490,158.830189,0.00043136,50]
[400290311,1767283462018,158.830189,0.00043136,50]
[400290312,1767283462314,158.830189,0.00043136,50]
[400290313,1767283462777,158.830189,0.00043136,50]
[400290314,1767283463502,158.830189,0.00043136,50]
[400290315,1767283463685,158.830189,0.00043136,50]
[400290316,1767283464005,158.830189,0.00043136,50]
[400290317,1767283464562,158.830189,0.00043136,50]
[400290318,1767283464870,158.830189,0.00043136,50]
[400290319,1767283465200,158.830189,0.00043136,50]
[400290320,1767283465524,158.830189,0.00043136,50]
[400290321,1767283465907,158.830189,0.00043136,50]
[400290322,1767283466193,158.830189,0.00043136,50]
[400290323,1767283466520,158.830189,0.00043136,50]
[400290324,1767283466788,158.830189,0.00043136,50]
[400290325,1767283467103,158.830189,0.00043136,50]
[400290326,1767283467407,158.830189,0.00043136,50]
[400290327,1767283467696,158.830189,0.00043136,50]
[400290328,1767283467975,158.83018,0.00043136,50]
[400290330,1767283503192,818.06200322,0.00043136,90]
[400290331,1767283505448,250.0,0.00043136,120]
[400290332,1767283506005,250.0,0.00043136,120]
[400290333,1767283506633,250.0,0.00043136,120]
[400290334,1767283507175,151.0,0.00043136,120]
[400290335,1767283507256,314.88512586,0.00043136,120]
[400290336,1767283507343,250.0,0.00043136,120]
[400290337,1767283507790,156.587,0.00043136,120]
[400290338,1767283507880,250.0,0.00043136,120]
[400290339,1767283508227,500.0,0.00043136,120]
[400290340,1767283508416,162.380719,0.00043136,120]
[400290341,1767283508530,250.0,0.00043136,120]
[400290342,1767283508856,500.0,0.00043136,120]
[400290343,1767283509039,168.3888056,0.00043136,120]
[400290344,1767283509475,500.0,0.00043136,120]
[400290345,1767283509684,168.3888056,0.00043136,120]
[400290346,1767283509767,414.0,0.00043136,120]
[400290347,1767283509977,151.0,0.00043136,120]
[400290348,1767283510087,500.0,0.00043136,120]
[400290349,1767283510379,429.318,0.00043136,120]
[400290350,1767283510766,500.0,0.00043136,120]
[400290351,1767283511008,445.202766,0.00043136,120]
[400290352,1767283511146,151.0,0.00043136,120]
[400290353,1767283511511,250.0,0.00043136,120]
[400290354,1767283511632,461.67526834,0.00043136,120]
[400290355,1767283511961,500.0,0.00043136,120]
[400290356,1767283512040,151.0,0.00043136,120]
[400290357,1767283512191,250.0,0.00043136,120]
[400290358,1767283512268,478.75725327,0.00043136,120]
[400290359,1767283512368,500.0,0.00043136,120]
[400290360,1767283512441,500.0,0.00043136,120]
[400290361,1767283512516,151.0,0.00043136,120]
[400290362,1767283512810,250.0,0.00043136,120]
[400290363,1767283512888,496.47127164,0.00043136,120]
[400290364,1767283513018,500.0,0.00043136,120]
[400290365,1767283513096,500.0,0.00043136,120]
[400290366,1767283513166,151.0,0.00043136,120]
[400290367,1767283513479,250.0,0.00043136,120]
[400290368,1767283513555,514.84070869,0.00043136,120]
[400290369,1767283513762,500.0,0.00043136,120]
[400290370,1767283513841,151.0,0.00043136,120]
[400290371,1767283514001,500.0,0.00043136,120]
[400290372,1767283514099,250.0,0.00043136,120]
[400290373,1767283514188,533.88981491,0.00043136,120]
[400290374,1767283514405,151.0,0.00043136,120]
[400290375,1767283514881,250.0,0.00043136,120]
[400290376,1767283514957,553.64373807,0.00043136,120]
[400290377,1767283515042,500.0,0.00043136,120]
[400290378,1767283515116,500.0,0.00043136,120]
[400290379,1767283515195,151.0,0.00043136,120]
[400290380,1767283515381,553.64373807,0.00043136,120]
[400290381,1767283515455,250.0,0.00043136,120]
[400290382,1767283515529,500.0,0.00043136,120]
[400290383,1767283515626,500.0,0.00043136,120]
[400290384,1767283515756,151.0,0.00043136,120]
[400290385,1767283515829,151.0,0.00043136,120]
[400290386,1767283516091,250.0,0.00043136,120]
[400290387,1767283516165,500.0,0.00043136,120]
[400290388,1767283516237,500.0,0.00043136,120]
[400290389,1767283516314,300.0,0.00043136,120]
[400290390,1767283516735,500.0,0.00043136,120]
[400290391,1767283516807,250.0,0.00043136,120]
[400290392,1767283516895,500.0,0.00043136,120]
[400290393,1767283516972,151.0,0.00043136,120]
[400290394,1767283517045,311.1,0.00043136,120]
[400290395,1767283517355,250.0,0.00043136,120]
[400290396,1767283517435,500.0,0.00043136,120]
[400290397,1767283517547,151.0,0.00043136,120]
[400290398,1767283517629,500.0,0.00043136,120]
[400290399,1767283517745,322.6107,0.00043136,120]
[400290400,1767283517962,250.0,0.00043136,120]
[400290401,1767283518032,500.0,0.00043136,120]
[400290402,1767283518202,151.0,0.00043136,120]
[400290403,1767283518285,322.6107,0.00043136,120]
[400290404,1767283518603,250.0,0.00043136,120]
[400290405,1767283518687,500.0,0.00043136,120]
[400290406,1767283518819,151.0,0.00043136,120]
[400290407,1767283519009,500.0,0.00043136,120]
[400290408,1767283519260,250.0,0.00043136,120]
[400290409,1767283519352,500.0,0.00043136,120]
[400290410,1767283519462,151.0,0.00043136,120]
[400290411,1767283519684,500.0,0.00043136,120]
[400290412,1767283519971,500.0,0.00043136,120]
[400290413,1767283520055,151.0,0.00043136,120]
[400290414,1767283520339,500.0,0.00043136,120]
[400290415,1767283520591,500.0,0.00043136,120]
[400290416,1767283520671,500.0,0.00043136,120]
[400290417,1767283520830,500.0,0.00043136,120]
[400290418,1767283521078,500.0,0.00043136,120]
[400290419,1767283521180,151.0,0.00043136,120]
[400290420,1767283521271,500.0,0.00043136,120]
[400290421,1767283521358,511.8833076,0.00043136,120]
[400290422,1767283521447,250.0,0.00043136,120]
[400290423,1767283521812,151.0,0.00043136,120]
[400290424,1767283521904,500.0,0.00043136,120]
[400290425,1767283522056,250.0,0.00043136,120]
[400290426,1767283522439,151.0,0.00043136,120]
[400290427,1767283522559,500.0,0.00043136,120]
[400290428,1767283522691,250.0,0.00043136,120]
[400290429,1767283523176,500.0,0.00043136,120]
[400290430,1767283523273,152.45698963,0.00043136,120]
[400290431,1767283523361,151.0,0.00043136,120]
[400290432,1767283523456,250.0,0.00043136,120]
[400290433,1767283523915,250.0,0.00043136,120]
[400290434,1767283524072,500.0,0.00043136,120]
[400290435,1767283524539,250.0,0.00043136,120]
[400290436,1767283524663,500.0,0.00043136,120]
[400290437,1767283524742,203.16558373,0.00043136,120]
[400290438,1767283525262,500.0,0.00043136,120]
[400290439,1767283525597,250.0,0.00043136,120]
[400290440,1767283525880,500.0,0.00043136,120]
[400290441,1767283526217,250.0,0.00043136,120]
[400290442,1767283527031,151.0,0.00043136,50]
[400290443,1767283528386,151.0,0.00043136,50]
[400290444,1767283562499,500.0,0.00043136,120]
[400290445,1767283566412,250.0,0.00043136,120]
[400290446,1767283566972,250.0,0.00043136,120]
[400290447,1767283568115,250.0,0.00043136,120]
[400290448,1767283568739,250.0,0.00043136,120]
[400290449,1767283569337,250.0,0.00043136,120]
[400290450,1767283573432,151.0,0.00043136,120]
[400290451,1767283573515,500.0,0.00043136,120]
[400290452,1767283573710,500.0,0.00043136,120]
[400290453,1767283573959,500.0,0.00043136,120]
[400290454,1767283574085,151.0,0.00043136,120]
[400290455,1767283574209,500.0,0.00043136,120]
[400290456,1767283574463,500.0,0.00043136,120]
[400290457,1767283574691,151.0,0.00043136,120]
[400290458,1767283574776,500.0,0.00043136,120]
[400290459,1767283574973,500.0,0.00043136,120]
[400290460,1767283575210,500.0,0.00043136,120]
[400290461,1767283575331,151.0,0.00043136,120]
[400290462,1767283575445,500.0,0.00043136,120]
[400290463,1767283575731,500.0,0.00043136,120]
[400290464,1767283575970,151.0,0.00043136,120]
[400290465,1767283576045,500.0,0.00043136,120]
[400290466,1767283576216,500.0,0.00043136,120]
[400290467,1767283576854,500.0,0.00043136,120]
[400290468,1767283576940,151.0,0.00043136,120]
[400290469,1767283577020,500.0,0.00043136,120]
[400290470,1767283577105,500.0,0.00043136,120]
[400290471,1767283577211,151.0,0.00043136,120]
[400290472,1767283577372,500.0,0.00043136,120]
[400290473,1767283577445,250.54258351,0.00043136,120]
[400290474,1767283577650,500.0,0.00043136,120]
[400290475,1767283577833,151.0,0.00043136,120]
[400290476,1767283577907,500.0,0.00043136,120]
[400290477,1767283578151,500.0,0.00043136,120]
[400290478,1767283578390,532.21582838,0.00043136,120]
[400290479,1767283578466,151.0,0.00043136,120]
[400290480,1767283579074,151.0,0.00043136,120]
[400290481,1767283579731,151.0,0.00043136,120]
[400290482,1767283580336,151.0,0.00043136,120]
[400290483,1767283581023,151.0,0.00043136,120]
[400290484,1767283581635,151.0,0.00043136,120]
[400290485,1767283582265,151.0,0.00043136,120]
[400290486,1767283582882,151.0,0.00043136,120]
[400290487,1767283583985,151.0,0.00043136,120]
[400290489,1767283625489,500.0,0.00043136,120]
[400290490,1767283625576,200.0,0.00043136,120]
[400290491,1767283627762,200.0,0.00043136,120]
[400290492,1767283628366,200.0,0.00043136,120]
[400290493,1767283633984,622.87694932,0.00043136,120]
[400290494,1767283635740,200.0,0.00043136,120]
[400290495,1767283640903,185.92853055,0.00043136,120]
[400290497,1767283692869,500.0,0.00043136,120]
[400290498,1767283693085,500.0,0.00043136,120]
[400290499,1767283693318,500.0,0.00043136,120]
[400290500,1767283693549,500.0,0.00043136,120]
[400290501,1767283693792,500.0,0.00043136,120]
[400290502,1767283694196,500.0,0.00043136,120]
[400290503,1767283694291,500.0,0.00043136,120]
[400290504,1767283694538,500.0,0.00043136,120]
[400290505,1767283694785,500.0,0.00043136,120]
[400290506,1767283695024,210.82873619,0.00043136,120]
[400290508,1767283749133,-338.82931,0.00013324,2]
[400290509,1767283749153,-312.4,0.00013391,2]
[400290510,1767283749172,-531.40494612,0.00013442,2]
[400290511,1767283751431,500.0,0.00043136,120]
[400290512,1767283751709,500.0,0.00043136,120]
[400290513,1767283751973,500.0,0.00043136,120]
[400290514,1767283752213,500.0,0.00043136,120]
[400290515,1767283752466,500.0,0.00043136,120]
[400290516,1767283752733,500.0,0.00043136,120]
[400290517,1767283753018,228.4123224,0.00043136,120]
[400290518,1767283789199,6839.54369087,0.00043136,120]
[400290519,1767283806432,10000.0,0.00043136,120]
[400290524,1767283831342,-468.59505388,0.00013442,2]
[400290525,1767283831358,-195.0,0.00013768,2]
[400290526,1767283831368,-195.0,0.00013803,2]
[400290527,1767283831377,-195.0,0.00013828,2]
[400290528,1767283831388,-1243.03,0.00013838,2]
[400290529,1767283831397,-300.0,0.0001386,2]
[400290530,1767283831407,-1200.0,0.00013861,2]
[400290531,1767283831417,-308.64382182,0.00013861,2]
[400290532,1767283831427,-166.66,0.00013861,2]
[400290533,1767283831437,-2089.8,0.00013862,2]
[400290534,1767283831447,-412.09644188,0.00013891,2]
[400290535,1767283831457,-106.32430951,0.00013892,2]
[400290536,1767283831473,-561.46,0.00013892,2]
[400290537,1767283831486,-459.02569049,0.00013892,2]
[400290538,1767283831496,-4057.96,0.00013997,2]
[400290539,1767283831506,-166.66,0.00014153,2]
[400290540,1767283831516,-150.0,0.000144,2]
[400290541,1767283831526,-150.0,0.000144,2]
[400290542,1767283831537,-105.56151555,0.000144,2]
[400290543,1767283831549,-44.43848445,0.000144,2]
[400290544,1767283831559,-150.0,0.000144,2]
[400290545,1767283831573,-106.56079254,0.000144,2]
[400290546,1767283831584,-43.43920746,0.000144,2]
[400290547,1767283831594,-150.0,0.000144,2]
[400290548,1767283831605,-150.0,0.000144,2]
[400290549,1767283831615,-226.02206269,0.000144,2]
[400290550,1767283831626,-150.0,0.000144,2]
[400290551,1767283831635,-150.0,0.000144,2]
[400290552,1767283831647,-198.84062533,0.000144,2]
[400290553,1767283831656,-150.0,0.000144,2]
[400290554,1767283831666,-166.66,0.00014445,2]
[400290555,1767283831676,-178.77,0.00014578,2]
[400290556,1767283831686,-354.985,0.0001469,2]
[400290558,1767283831696,-43581.9501,0.0001469,2]
[400290561,1767283831706,-200.0,0.00014697,2]
[400290563,1767283831720,-485.00247756,0.00014713,2]
[400290565,1767283831730,-154.72499476,0.00014713,2]
[400290567,1767283831739,-668.49853968,0.00014713,2]
[400290569,1767283831749,-166.66,0.00014737,2]
[400290571,1767283831759,-150.0,0.0001476,2]
[400290573,1767283831769,-925.984,0.00014789,2]
[400290575,1767283831779,-226.44552946,0.00014789,2]
[400290577,1767283831789,-500.0,0.00014789,2]
[400290579,1767283831798,-295.34581393,0.00014789,2]
[400290581,1767283831808,-224.49268943,0.00014789,2]
[400290584,1767283831818,-540.97247728,0.00014789,2]
[400290586,1767283831827,-174.26150099,0.00014789,2]
[400290588,1767283831837,-66035.89514746,0.0001479,2]
[400290590,1767283831849,-8767.90372088,0.0001479,2]
[400290592,1767283831861,-8541.14266508,0.0001479,2]
[400290594,1767283831872,-14604.44552486,0.0001479,2]
[400290597,1767283831884,-28607.56713306,0.0001479,2]
[400290599,1767283831896,-1538.8427499,0.0001479,2]
[400290601,1767283831907,-1037.1543125,0.0001479,2]
[400290603,1767283831919,-726.89716718,0.0001479,2]
[400290606,1767283831931,-1815.73579312,0.0001479,2]
[400290608,1767283831942,-7951.46,0.0001479,2]
[400290634,1767283836173,10000.0,0.00043134,120]
[400290644,1767283837493,-108901.43359338,0.0001479,2]
[400290645,1767283837510,-11035.44048111,0.0001479,2]
[400290646,1767283837539,-2578.60560507,0.0001479,2]
[400290647,1767283837586,-12987.04402191,0.0001479,2]
[400290648,1767283837598,-16798.28452891,0.0001479,2]
[400290649,1767283837610,-7967.72470494,0.0001479,2]
[400290650,1767283837623,-15120.03553679,0.0001479,2]
[400290651,1767283837636,-16785.15192604,0.0001479,2]
[400290652,1767283837649,-6003.3091171,0.0001479,2]
[400290653,1767283837660,-500.0,0.0001479,2]
[400290654,1767283837671,-3196.65031194,0.0001479,2]
[400290655,1767283837683,-385.72939717,0.0001479,2]
[400290656,1767283837695,-5166.6679344,0.0001479,2]
[400290657,1767283837707,-4176.20288896,0.0001479,2]
[400290662,1767283839486,-1068.38133156,0.0001479,2]
[400290663,1767283839645,-869.24,0.0001479,2]
[400290664,1767283839658,-4337.20429625,0.0001479,2]
[400290665,1767283839670,-14287.24589999,0.0001479,2]
[400290666,1767283839686,-6725.39,0.0001479,2]
[400290667,1767283839699,-447.58701913,0.0001479,2]
[400290668,1767283839722,-5768.68478496,0.0001479,2]
[400290669,1767283839734,-919.39818052,0.0001479,2]
[400290670,1767283839768,-1736.33370989,0.0001479,2]
[400290671,1767283839780,-8646.00078,0.0001479,2]
[400290672,1767283839792,-1655.35490122,0.0001479,2]
[400290673,1767283839804,-3571.52766994,0.0001479,2]
[400290674,1767283839895,-4540.93902299,0.0001479,2]
[400290722,1767283844989,-1154.12100143,0.0001479,2]
[400290727,1767283845014,-956.549412,0.0001479,2]
[400290730,1767283845029,-319512.18812836,0.0001479,2]
[400290732,1767283845039,-455.48,0.00014813,2]
[400290733,1767283845049,-150.0,0.00014817,2]
[400290734,1767283845058,-653.63357813,0.00014945,2]
[400290735,1767283845068,-485.00247756,0.00014956,2]
[400290736,1767283845077,-668.49853965,0.00014956,2]
[400290737,1767283845087,-2857.99,0.0001501,2]
[400290738,1767283845096,-166.66,0.00015029,2]
[400290739,1767283845106,-475.13,0.00015096,2]
[400290740,1767283845115,-481.93,0.00015096,2]
[400290741,1767283845125,-195.0,0.00015107,2]
[400290742,1767283845134,-999.0,0.00015119,3]
[400290743,1767283845143,-1000.0,0.00015122,2]
[400290744,1767283845153,-195.0,0.00015145,2]
[400290745,1767283845162,-485.00247756,0.00015199,2]
[400290746,1767283845172,-668.49853965,0.00015199,2]
[400290747,1767283845181,-150.0,0.000152,2]
[400290748,1767283845191,-1243.85,0.0001523,2]
[400290749,1767283845201,-166.66,0.0001532,2]
[400290750,1767283845211,-485.00247756,0.00015442,2]
[400290751,1767283845221,-668.49853965,0.00015442,2]
[400290752,1767283845230,-485.00247756,0.00015685,2]
[400290753,1767283845239,-668.49853965,0.00015685,2]
[400290754,1767283845249,-565.0,0.00015695,2]
[400290755,1767283845259,-1322.831,0.00015695,2]
[400290756,1767283845268,-2433.0,0.00015695,2]
[400290757,1767283845278,-1199.0,0.00015695,2]
[400290758,1767283845287,-86251.07567982,0.0001573,2]
[400290759,1767283845300,-1878.71780042,0.0001573,2]
[400290760,1767283845311,-18216.10242576,0.0001573,2]
[400290761,1767283845321,-505.85873594,0.00015796,2]
[400290762,1767283845331,-154.72499476,0.00015807,2]
[400290763,1767283845341,-880.486,0.00015873,2]
[400290764,1767283845351,-1294.734,0.00015873,2]
[400290765,1767283845365,-280.6867429,0.00015924,2]
[400290766,1767283845375,-485.00247756,0.00015928,2]
[400290767,1767283845384,-668.49853965,0.00015928,2]
[400290768,1767283845396,-288.02618618,0.0001599,2]
[400290770,1767283845406,-666.0,0.00015999,2]
[400290772,1767283845416,-50733.03092628,0.00015999,2]
[400290775,1767283845426,-191.07718505,0.00016,2]
[400290776,1767283845436,-243.98337144,0.00016,2]
[400290777,1767283845446,-150.0,0.00016,2]
[400290778,1767283845455,-150.0,0.00016,2]
[400290780,1767283845465,-150.0,0.00016,2]
[400290782,1767283845475,-154.53555956,0.00016,2]
[400290783,1767283845484,-152.83843725,0.00016,2]
[400290784,1767283845494,-266.12074106,0.00016,2]
[400290785,1767283845503,-153.71293313,0.00016,2]
[400290786,1767283845513,-150.0,0.00016,2]
[400290787,1767283845523,-179479.44420548,0.00016,4]
[400290788,1767283845540,-351556.26249882,0.00016,4]
[400290789,1767283845551,-381.10635154,0.00016,4]
[400290790,1767283845648,-2612.77264086,0.00016,4]
[400290791,1767283845660,-881.69747,0.00016,4]
[400290792,1767283845764,-4609.07870322,0.00016,4]
[400290794,1767283845776,-191305.99066438,0.00016,4]
[400290828,1767283863023,500.0,0.00043134,120]